[Event "Titled Tuesday Blitz December 13 Late 2022"]
[White "Kravtsiv, Martyn"]
[Black "Sourath Biswas"]
[WhiteFideId "14113147"]
[BlackFideId "35091484"]
[WhiteElo "2695"]
[BlackElo "2164"]
[Result "1-0"]
[Round "08"]
[TimeControl "180+1"]
[Date "2022.12.13"]
[WhiteClock "0:00:04"]
[BlackClock "0:00:03"]

1. e4 {[%clk 0:03:00]}  c6 {[%clk 0:02:59]} 2. Nf3 {[%clk 0:03:01]}  d5 {[%clk 0:03:00]} 3. d3 {[%clk 0:03:01]}  dxe4 {[%clk 0:03:00]} 4. dxe4 {[%clk 0:03:02]}  Qxd1+ {[%clk 0:03:00]} 5. Kxd1 {[%clk 0:03:03]}  Nf6 {[%clk 0:03:01]} 6. Nbd2 {[%clk 0:03:03]}  Bg4 {[%clk 0:03:01]} 7. Be2 {[%clk 0:03:01]}  Nbd7 {[%clk 0:03:00]} 8. Ne1 {[%clk 0:03:01]}  Bxe2+ {[%clk 0:03:00]} 9. Kxe2 {[%clk 0:03:01]}  e5 {[%clk 0:03:00]} 10. Nd3 {[%clk 0:03:00]}  Bd6 {[%clk 0:02:58]} 11. f3 {[%clk 0:02:58]}  Bc7 {[%clk 0:02:54]} 12. a4 {[%clk 0:02:57]}  Ke7 {[%clk 0:02:45]} 13. b3 {[%clk 0:02:56]}  Ne8 {[%clk 0:02:43]} 14. Nc4 {[%clk 0:02:53]}  f6 {[%clk 0:02:40]} 15. Rd1 {[%clk 0:02:53]}  Ke6 {[%clk 0:02:40]} 16. Ba3 {[%clk 0:02:41]}  b5 {[%clk 0:02:40]} 17. Ne3 {[%clk 0:02:35]}  bxa4 {[%clk 0:02:35]} 18. bxa4 {[%clk 0:02:34]}  Nd6 {[%clk 0:02:35]} 19. Nb4 {[%clk 0:02:27]}  Nb8 {[%clk 0:02:24]} 20. Rab1 {[%clk 0:02:17]}  a5 {[%clk 0:02:24]} 21. Nd3 {[%clk 0:01:57]}  Na6 {[%clk 0:02:21]} 22. Bxd6 {[%clk 0:01:53]}  Bxd6 {[%clk 0:02:22]} 23. Nf5 {[%clk 0:01:53]}  Bf8 {[%clk 0:02:22]} 24. Rb6 {[%clk 0:01:52]}  g6 {[%clk 0:02:19]} 25. Rxc6+ {[%clk 0:01:52]}  Kf7 {[%clk 0:02:18]} 26. Ne3 {[%clk 0:01:50]}  Bh6 {[%clk 0:02:10]} 27. Nd5 {[%clk 0:01:48]}  Rhc8 {[%clk 0:02:04]} 28. Rxf6+ {[%clk 0:01:43]}  Kg7 {[%clk 0:02:05]} 29. c3 {[%clk 0:01:33]}  Rxc3 {[%clk 0:02:01]} 30. Rxg6+ {[%clk 0:01:30]}  hxg6 {[%clk 0:02:02]} 31. Nxc3 {[%clk 0:01:30]}  Rc8 {[%clk 0:02:02]} 32. Nd5 {[%clk 0:01:25]}  Rc2+ {[%clk 0:02:03]} 33. Kf1 {[%clk 0:01:25]}  Ra2 {[%clk 0:01:51]} 34. Rb1 {[%clk 0:01:24]}  Rxa4 {[%clk 0:01:49]} 35. Rb7+ {[%clk 0:01:24]}  Kf8 {[%clk 0:01:48]} 36. Nxe5 {[%clk 0:01:24]}  Ra1+ {[%clk 0:01:33]} 37. Kf2 {[%clk 0:01:19]}  Nc5 {[%clk 0:01:28]} 38. Rf7+ {[%clk 0:01:12]}  Ke8 {[%clk 0:01:25]} 39. Nc7+ {[%clk 0:01:08]}  Kd8 {[%clk 0:01:24]} 40. Nc6+ {[%clk 0:01:07]}  Kc8 {[%clk 0:01:21]} 41. Nb5 {[%clk 0:01:06]}  Nd7 {[%clk 0:01:01]} 42. e5 {[%clk 0:01:06]}  Ra2+ {[%clk 0:00:58]} 43. Kg3 {[%clk 0:01:05]}  Re2 {[%clk 0:00:58]} 44. Nbd4 {[%clk 0:00:47]}  Nxe5 {[%clk 0:00:31]} 45. Nxe2 {[%clk 0:00:38]}  Nxf7 {[%clk 0:00:32]} 46. Nxa5 {[%clk 0:00:38]}  Kd7 {[%clk 0:00:32]} 47. Nf4 {[%clk 0:00:35]}  Ne5 {[%clk 0:00:31]} 48. Nb3 {[%clk 0:00:32]}  Ke7 {[%clk 0:00:25]} 49. Nd4 {[%clk 0:00:30]}  Kf6 {[%clk 0:00:26]} 50. Nde2 {[%clk 0:00:30]}  g5 {[%clk 0:00:23]} 51. Nd5+ {[%clk 0:00:28]}  Ke6 {[%clk 0:00:23]} 52. Ne3 {[%clk 0:00:28]}  Bf8 {[%clk 0:00:23]} 53. Nd4+ {[%clk 0:00:28]}  Kf7 {[%clk 0:00:21]} 54. Ng4 {[%clk 0:00:25]}  Ng6 {[%clk 0:00:21]} 55. Nf5 {[%clk 0:00:23]}  Bb4 {[%clk 0:00:21]} 56. Kf2 {[%clk 0:00:23]}  Ke6 {[%clk 0:00:20]} 57. Ng7+ {[%clk 0:00:21]}  Kf7 {[%clk 0:00:20]} 58. Nf5 {[%clk 0:00:22]}  Ke6 {[%clk 0:00:20]} 59. Nd4+ {[%clk 0:00:22]}  Kd5 {[%clk 0:00:18]} 60. Ne2 {[%clk 0:00:23]}  Ke6 {[%clk 0:00:18]} 61. Ke3 {[%clk 0:00:22]}  Bc5+ {[%clk 0:00:18]} 62. Ke4 {[%clk 0:00:22]}  Ne7 {[%clk 0:00:13]} 63. Ne3 {[%clk 0:00:20]}  Kf7 {[%clk 0:00:11]} 64. Nd5 {[%clk 0:00:19]}  Ng6 {[%clk 0:00:08]} 65. g3 {[%clk 0:00:17]}  Ke6 {[%clk 0:00:07]} 66. h3 {[%clk 0:00:16]}  Ne5 {[%clk 0:00:03]} 67. Nc7+ {[%clk 0:00:16]}  Kd6 {[%clk 0:00:04]} 68. Nb5+ {[%clk 0:00:15]}  Ke6 {[%clk 0:00:04]} 69. Ned4+ {[%clk 0:00:13]}  Kf6 {[%clk 0:00:05]} 70. Ne2 {[%clk 0:00:08]}  Nf7 {[%clk 0:00:05]} 71. Nbc3 {[%clk 0:00:05]}  Bf2 {[%clk 0:00:02]} 72. Kd5 {[%clk 0:00:04]}  Be3 {[%clk 0:00:03]} 73. Ne4+ {[%clk 0:00:05]}  Kg6 {[%clk 0:00:03]} 74. g4 {[%clk 0:00:04]} 1-0


[Site "https://www.chess.com"]

[Event "Titled Tuesday Blitz December 13 Late 2022"]
[White "Lacasa Diaz, Jose Antonio"]
[Black "Melikyan, Gnel"]
[WhiteFideId "2203375"]
[BlackFideId "54109990"]
[WhiteElo "2338"]
[BlackElo "2138"]
[Result "0-1"]
[Round "08"]
[TimeControl "180+1"]
[Date "2022.12.14"]
[WhiteClock "0:00:05"]
[BlackClock "0:00:10"]

1. e4 {[%clk 0:02:47]}  Nf6 {[%clk 0:02:59]} 2. e5 {[%clk 0:02:45]}  Nd5 {[%clk 0:02:59]} 3. Nc3 {[%clk 0:02:45]}  e6 {[%clk 0:02:57]} 4. Nf3 {[%clk 0:02:44]}  d6 {[%clk 0:02:56]} 5. Nxd5 {[%clk 0:02:40]}  exd5 {[%clk 0:02:56]} 6. d4 {[%clk 0:02:40]}  Nc6 {[%clk 0:02:56]} 7. h3 {[%clk 0:02:32]}  dxe5 {[%clk 0:02:55]} 8. dxe5 {[%clk 0:02:32]}  Bc5 {[%clk 0:02:55]} 9. Bd3 {[%clk 0:02:30]}  h6 {[%clk 0:02:53]} 10. O-O {[%clk 0:02:30]}  O-O {[%clk 0:02:53]} 11. c3 {[%clk 0:02:25]}  Qe7 {[%clk 0:02:50]} 12. Re1 {[%clk 0:02:24]}  Be6 {[%clk 0:02:48]} 13. a4 {[%clk 0:02:22]}  a5 {[%clk 0:02:45]} 14. Bc2 {[%clk 0:02:18]}  f5 {[%clk 0:02:16]} 15. exf6 {[%clk 0:02:13]}  Qxf6 {[%clk 0:02:15]} 16. Qd3 {[%clk 0:02:11]}  Qf5 {[%clk 0:02:05]} 17. Qd1 {[%clk 0:01:53]}  Qf7 {[%clk 0:02:02]} 18. Be3 {[%clk 0:01:45]}  Bd6 {[%clk 0:01:51]} 19. Nd4 {[%clk 0:01:25]}  Nxd4 {[%clk 0:01:46]} 20. Qxd4 {[%clk 0:01:22]}  c5 {[%clk 0:01:38]} 21. Qd2 {[%clk 0:01:19]}  Rad8 {[%clk 0:01:25]} 22. Re2 {[%clk 0:01:03]}  d4 {[%clk 0:00:56]} 23. Bxh6 {[%clk 0:00:44]}  dxc3 {[%clk 0:00:47]} 24. Qg5 {[%clk 0:00:36]}  cxb2 {[%clk 0:00:45]} 25. Rae1 {[%clk 0:00:34]}  Bc4 {[%clk 0:00:22]} 26. Bg6 {[%clk 0:00:28]}  Qf6 {[%clk 0:00:14]} 27. Qh5 {[%clk 0:00:20]}  Bxe2 {[%clk 0:00:13]} 28. Qxe2 {[%clk 0:00:07]}  Qxg6 {[%clk 0:00:12]} 29. Qxb2 {[%clk 0:00:04]}  Qxh6 {[%clk 0:00:10]} 30. Qxb7 {[%clk 0:00:05]}  Qf6 {[%clk 0:00:10]} 31. Qd5+ {[%clk 0:00:04]}  Qf7 {[%clk 0:00:10]} 32. Qd2 {[%clk 0:00:04]}  Bh2+ {[%clk 0:00:09]} 33. Kxh2 {[%clk 0:00:05]}  Rxd2 {[%clk 0:00:10]} 0-1


[Site "https://www.chess.com"]

[Event "Titled Tuesday Blitz December 13 Late 2022"]
[White "Marchesich, Giovanni"]
[Black "Torres Dominguez, David"]
[WhiteFideId "2824790"]
[BlackFideId "2220857"]
[WhiteElo "2200"]
[BlackElo "2037"]
[Result "1-0"]
[Round "08"]
[TimeControl "180+1"]
[Date "2022.12.14"]
[WhiteClock "0:02:09"]
[BlackClock "0:01:02"]

1. d4 {[%clk 0:03:00]}  e5 {[%clk 0:02:59]} 2. dxe5 {[%clk 0:03:00]}  d5 {[%clk 0:02:58]} 3. Nf3 {[%clk 0:02:58]}  Bg4 {[%clk 0:02:57]} 4. Nbd2 {[%clk 0:02:57]}  Nc6 {[%clk 0:02:56]} 5. h3 {[%clk 0:02:57]}  Bh5 {[%clk 0:02:55]} 6. e3 {[%clk 0:02:55]}  Qd7 {[%clk 0:02:55]} 7. Bb5 {[%clk 0:02:55]}  O-O-O {[%clk 0:02:51]} 8. c3 {[%clk 0:02:52]}  a6 {[%clk 0:02:49]} 9. Ba4 {[%clk 0:02:44]}  Nge7 {[%clk 0:02:47]} 10. g4 {[%clk 0:02:39]}  Bg6 {[%clk 0:02:46]} 11. Nd4 {[%clk 0:02:39]}  Qe6 {[%clk 0:02:42]} 12. Nxe6 {[%clk 0:02:39]}  fxe6 {[%clk 0:02:40]} 13. f4 {[%clk 0:02:37]}  h5 {[%clk 0:02:38]} 14. g5 {[%clk 0:02:37]}  Nb8 {[%clk 0:02:31]} 15. Bc2 {[%clk 0:02:36]}  Bxc2 {[%clk 0:02:24]} 16. Qxc2 {[%clk 0:02:37]}  Nf5 {[%clk 0:02:24]} 17. Kf2 {[%clk 0:02:36]}  h4 {[%clk 0:02:18]} 18. Nf3 {[%clk 0:02:35]}  c5 {[%clk 0:02:11]} 19. b4 {[%clk 0:02:30]}  Ng3 {[%clk 0:01:54]} 20. Rd1 {[%clk 0:02:26]}  Ne4+ {[%clk 0:01:53]} 21. Kg2 {[%clk 0:02:26]}  Nc6 {[%clk 0:01:47]} 22. bxc5 {[%clk 0:02:26]}  Bxc5 {[%clk 0:01:43]} 23. Nd4 {[%clk 0:02:26]}  Bxd4 {[%clk 0:01:39]} 24. cxd4 {[%clk 0:02:25]}  Kb8 {[%clk 0:01:36]} 25. Ba3 {[%clk 0:02:25]}  Rc8 {[%clk 0:01:35]} 26. Qa4 {[%clk 0:02:20]}  Nc3 {[%clk 0:01:25]} 27. Bd6+ {[%clk 0:02:20]}  Ka8 {[%clk 0:01:23]} 28. Qa3 {[%clk 0:02:21]}  Nxd1 {[%clk 0:01:22]} 29. Rxd1 {[%clk 0:02:21]}  Na7 {[%clk 0:01:17]} 30. Rc1 {[%clk 0:02:20]}  Nb5 {[%clk 0:01:12]} 31. Rxc8+ {[%clk 0:02:20]}  Rxc8 {[%clk 0:01:12]} 32. Qb2 {[%clk 0:02:20]}  Rc4 {[%clk 0:01:07]} 33. Bc5 {[%clk 0:02:15]}  Nc3 {[%clk 0:01:02]} 34. Qb6 {[%clk 0:02:09]} 1-0


[Site "https://www.chess.com"]

[Event "Titled Tuesday Blitz December 13 Late 2022"]
[White "Marcolino, Daniel Mattos"]
[Black "Clawitter, Craig"]
[WhiteFideId "2106841"]
[BlackFideId "2023105"]
[WhiteElo "2132"]
[BlackElo "2208"]
[Result "1-0"]
[Round "08"]
[TimeControl "180+1"]
[Date "2022.12.14"]
[WhiteClock "0:00:12"]
[BlackClock "0:00:01"]

1. d4 {[%clk 0:03:00]}  e6 {[%clk 0:02:52]} 2. Nf3 {[%clk 0:02:59]}  Nf6 {[%clk 0:02:50]} 3. g3 {[%clk 0:03:00]}  d5 {[%clk 0:02:48]} 4. Bg2 {[%clk 0:03:00]}  Be7 {[%clk 0:02:48]} 5. O-O {[%clk 0:03:00]}  O-O {[%clk 0:02:49]} 6. c4 {[%clk 0:03:01]}  dxc4 {[%clk 0:02:49]} 7. Qc2 {[%clk 0:03:01]}  a6 {[%clk 0:02:50]} 8. a4 {[%clk 0:03:01]}  Bd7 {[%clk 0:02:48]} 9. Qxc4 {[%clk 0:03:01]}  Bc6 {[%clk 0:02:46]} 10. Bg5 {[%clk 0:03:02]}  a5 {[%clk 0:02:33]} 11. Nc3 {[%clk 0:02:52]}  Na6 {[%clk 0:02:31]} 12. Rad1 {[%clk 0:02:44]}  Nb4 {[%clk 0:02:28]} 13. Qb3 {[%clk 0:02:35]}  Ra6 {[%clk 0:02:04]} 14. Ne5 {[%clk 0:01:21]}  Bxg2 {[%clk 0:02:02]} 15. Kxg2 {[%clk 0:01:22]}  Qa8 {[%clk 0:01:42]} 16. Nb5 {[%clk 0:01:20]}  Rc8 {[%clk 0:01:17]} 17. Nc4 {[%clk 0:01:11]}  c6 {[%clk 0:00:37]} 18. Nbd6 {[%clk 0:01:08]}  Rd8 {[%clk 0:00:23]} 19. Bxf6 {[%clk 0:00:55]}  gxf6 {[%clk 0:00:17]} 20. Ne4 {[%clk 0:00:53]}  b5 {[%clk 0:00:16]} 21. Ncd2 {[%clk 0:00:47]}  c5 {[%clk 0:00:17]} 22. f3 {[%clk 0:00:42]}  c4 {[%clk 0:00:15]} 23. Qc3 {[%clk 0:00:39]}  Nd5 {[%clk 0:00:13]} 24. Qc1 {[%clk 0:00:37]}  Ne3+ {[%clk 0:00:13]} 25. Kf2 {[%clk 0:00:38]}  Nxd1+ {[%clk 0:00:13]} 26. Rxd1 {[%clk 0:00:39]}  Rxd4 {[%clk 0:00:12]} 27. Qc3 {[%clk 0:00:37]}  e5 {[%clk 0:00:10]} 28. e3 {[%clk 0:00:36]}  Rd3 {[%clk 0:00:10]} 29. Qc2 {[%clk 0:00:36]}  Qd8 {[%clk 0:00:08]} 30. axb5 {[%clk 0:00:36]}  Ra7 {[%clk 0:00:07]} 31. Qxc4 {[%clk 0:00:36]}  Rad7 {[%clk 0:00:07]} 32. Qc6 {[%clk 0:00:31]}  Bb4 {[%clk 0:00:07]} 33. Nxf6+ {[%clk 0:00:30]}  Kg7 {[%clk 0:00:06]} 34. Nxd7 {[%clk 0:00:30]}  Qxd7 {[%clk 0:00:07]} 35. Qxd7 {[%clk 0:00:28]}  Rxd7 {[%clk 0:00:08]} 36. Ke2 {[%clk 0:00:28]}  Rb7 {[%clk 0:00:08]} 37. Nc4 {[%clk 0:00:26]}  Rxb5 {[%clk 0:00:08]} 38. Rd7 {[%clk 0:00:24]}  Kf6 {[%clk 0:00:08]} 39. Ra7 {[%clk 0:00:24]}  Rc5 {[%clk 0:00:08]} 40. b3 {[%clk 0:00:24]}  Ke6 {[%clk 0:00:06]} 41. Ra6+ {[%clk 0:00:24]}  Ke7 {[%clk 0:00:06]} 42. Ra7+ {[%clk 0:00:21]}  Kf6 {[%clk 0:00:06]} 43. Kd3 {[%clk 0:00:21]}  Rd5+ {[%clk 0:00:06]} 44. Ke4 {[%clk 0:00:20]}  Rd1 {[%clk 0:00:05]} 45. Ra6+ {[%clk 0:00:18]}  Kg7 {[%clk 0:00:06]} 46. Nxe5 {[%clk 0:00:18]}  Rb1 {[%clk 0:00:05]} 47. Nc4 {[%clk 0:00:15]}  Rxb3 {[%clk 0:00:05]} 48. Ra7 {[%clk 0:00:15]}  Rb1 {[%clk 0:00:03]} 49. Ne5 {[%clk 0:00:16]}  Ra1 {[%clk 0:00:03]} 50. Rxf7+ {[%clk 0:00:15]}  Kg8 {[%clk 0:00:03]} 51. Kf5 {[%clk 0:00:14]}  Bc3 {[%clk 0:00:04]} 52. Rb7 {[%clk 0:00:13]}  Bxe5 {[%clk 0:00:01]} 53. Kxe5 {[%clk 0:00:13]}  a4 {[%clk 0:00:02]} 54. f4 {[%clk 0:00:12]}  a3 {[%clk 0:00:02]} 55. e4 {[%clk 0:00:13]}  a2 {[%clk 0:00:03]} 56. Ra7 {[%clk 0:00:13]}  h5 {[%clk 0:00:01]} 57. Kf6 {[%clk 0:00:13]}  h4 {[%clk 0:00:01]} 58. gxh4 {[%clk 0:00:12]}  Rf1 {[%clk 0:00:01]} 59. f5 {[%clk 0:00:12]} 1-0


[Site "https://www.chess.com"]

[Event "Titled Tuesday Blitz December 13 Late 2022"]
[White "Mazurkiewicz, Michal"]
[Black "Pace, Christopher"]
[WhiteFideId "1124943"]
[BlackFideId "2610167"]
[WhiteElo "2081"]
[BlackElo "2302"]
[Result "1-0"]
[Round "08"]
[TimeControl "180+1"]
[Date "2022.12.14"]
[WhiteClock "0:02:06"]
[BlackClock "0:01:26"]

1. e4 {[%clk 0:03:00]}  e5 {[%clk 0:02:59]} 2. Nf3 {[%clk 0:03:00]}  Nc6 {[%clk 0:02:59]} 3. g3 {[%clk 0:03:00]}  Nf6 {[%clk 0:02:53]} 4. d3 {[%clk 0:03:00]}  d5 {[%clk 0:02:51]} 5. exd5 {[%clk 0:03:01]}  Nxd5 {[%clk 0:02:52]} 6. Bg2 {[%clk 0:03:02]}  Be7 {[%clk 0:02:50]} 7. O-O {[%clk 0:03:01]}  O-O {[%clk 0:02:51]} 8. Re1 {[%clk 0:03:00]}  f6 {[%clk 0:02:51]} 9. Nc3 {[%clk 0:02:58]}  Nb6 {[%clk 0:02:46]} 10. a4 {[%clk 0:02:53]}  a5 {[%clk 0:02:44]} 11. Nb5 {[%clk 0:02:53]}  Bg4 {[%clk 0:02:29]} 12. c3 {[%clk 0:02:52]}  f5 {[%clk 0:02:08]} 13. Be3 {[%clk 0:02:49]}  e4 {[%clk 0:02:00]} 14. Qb3+ {[%clk 0:02:34]}  Kh8 {[%clk 0:01:56]} 15. dxe4 {[%clk 0:02:28]}  fxe4 {[%clk 0:01:57]} 16. Nd2 {[%clk 0:02:29]}  Nd5 {[%clk 0:01:51]} 17. Nxe4 {[%clk 0:02:18]}  Nxe3 {[%clk 0:01:51]} 18. Rxe3 {[%clk 0:02:19]}  Ne5 {[%clk 0:01:43]} 19. h3 {[%clk 0:02:11]}  Bh5 {[%clk 0:01:26]} 20. Qe6 {[%clk 0:02:06]} 1-0


[Site "https://www.chess.com"]

[Event "Titled Tuesday Blitz December 13 Late 2022"]
[White "Melkumyan, Hrant"]
[Black "Sarana, Alexey"]
[WhiteFideId "13302485"]
[BlackFideId "24133795"]
[WhiteElo "2604"]
[BlackElo "2708"]
[Result "1/2-1/2"]
[Round "08"]
[TimeControl "180+1"]
[Date "2022.12.13"]
[WhiteClock "0:00:04"]
[BlackClock "0:00:09"]

1. d4 {[%clk 0:03:00]}  Nf6 {[%clk 0:03:00]} 2. c4 {[%clk 0:03:01]}  e6 {[%clk 0:03:00]} 3. Bf4 {[%clk 0:03:02]}  d5 {[%clk 0:03:00]} 4. e3 {[%clk 0:03:02]}  Bd6 {[%clk 0:02:59]} 5. Bxd6 {[%clk 0:02:54]}  cxd6 {[%clk 0:03:00]} 6. Nc3 {[%clk 0:02:54]}  dxc4 {[%clk 0:02:59]} 7. Bxc4 {[%clk 0:02:54]}  O-O {[%clk 0:03:00]} 8. Nf3 {[%clk 0:02:54]}  b6 {[%clk 0:03:00]} 9. O-O {[%clk 0:02:53]}  Bb7 {[%clk 0:03:00]} 10. Qe2 {[%clk 0:02:51]}  Nbd7 {[%clk 0:02:46]} 11. Bd3 {[%clk 0:02:47]}  e5 {[%clk 0:02:43]} 12. Bc2 {[%clk 0:02:24]}  Qe7 {[%clk 0:02:40]} 13. Rfd1 {[%clk 0:02:22]}  g6 {[%clk 0:02:36]} 14. Rac1 {[%clk 0:02:21]}  Rfc8 {[%clk 0:02:27]} 15. Bb3 {[%clk 0:02:17]}  Kg7 {[%clk 0:02:14]} 16. h3 {[%clk 0:02:10]}  h6 {[%clk 0:02:06]} 17. a3 {[%clk 0:01:53]}  Nf8 {[%clk 0:02:05]} 18. Ba2 {[%clk 0:01:49]}  N8h7 {[%clk 0:01:56]} 19. Rc2 {[%clk 0:01:35]}  Ng5 {[%clk 0:01:50]} 20. Nxg5 {[%clk 0:01:27]}  hxg5 {[%clk 0:01:51]} 21. dxe5 {[%clk 0:01:23]}  dxe5 {[%clk 0:01:50]} 22. Rcd2 {[%clk 0:01:24]}  Rh8 {[%clk 0:01:44]} 23. e4 {[%clk 0:01:17]}  Rac8 {[%clk 0:01:20]} 24. f3 {[%clk 0:01:10]}  Rhd8 {[%clk 0:01:06]} 25. Qe3 {[%clk 0:01:09]}  Nh5 {[%clk 0:01:04]} 26. Bd5 {[%clk 0:01:01]}  Nf4 {[%clk 0:00:50]} 27. Bxb7 {[%clk 0:01:00]}  Rxd2 {[%clk 0:00:51]} 28. Qxd2 {[%clk 0:00:52]}  Qxb7 {[%clk 0:00:50]} 29. Qd6 {[%clk 0:00:53]}  Qc7 {[%clk 0:00:45]} 30. Qxc7 {[%clk 0:00:47]}  Rxc7 {[%clk 0:00:46]} 31. Kf2 {[%clk 0:00:48]}  Ne6 {[%clk 0:00:42]} 32. Rd5 {[%clk 0:00:41]}  f6 {[%clk 0:00:42]} 33. Rd2 {[%clk 0:00:35]}  Nd4 {[%clk 0:00:40]} 34. Ne2 {[%clk 0:00:30]}  Nb3 {[%clk 0:00:38]} 35. Rd3 {[%clk 0:00:30]}  Nc5 {[%clk 0:00:38]} 36. Rd6 {[%clk 0:00:30]}  Na4 {[%clk 0:00:38]} 37. Rd2 {[%clk 0:00:29]}  Kf7 {[%clk 0:00:37]} 38. Ke1 {[%clk 0:00:21]}  Ke6 {[%clk 0:00:35]} 39. Kd1 {[%clk 0:00:22]}  a5 {[%clk 0:00:29]} 40. Nc1 {[%clk 0:00:19]}  Nc5 {[%clk 0:00:23]} 41. Nd3 {[%clk 0:00:18]}  Nb3 {[%clk 0:00:22]} 42. Rc2 {[%clk 0:00:19]}  Rd7 {[%clk 0:00:22]} 43. Rc3 {[%clk 0:00:17]}  Nd4 {[%clk 0:00:21]} 44. Ke1 {[%clk 0:00:16]}  f5 {[%clk 0:00:20]} 45. a4 {[%clk 0:00:11]}  Rd6 {[%clk 0:00:16]} 46. Kf2 {[%clk 0:00:12]}  Nc6 {[%clk 0:00:15]} 47. Ke3 {[%clk 0:00:11]}  Kf6 {[%clk 0:00:14]} 48. Kf2 {[%clk 0:00:10]}  Ke7 {[%clk 0:00:13]} 49. Ke3 {[%clk 0:00:10]}  Ke6 {[%clk 0:00:14]} 50. Kf2 {[%clk 0:00:10]}  Nd4 {[%clk 0:00:14]} 51. Ke3 {[%clk 0:00:11]}  Kf6 {[%clk 0:00:14]} 52. Kf2 {[%clk 0:00:09]}  Ne6 {[%clk 0:00:15]} 53. Ke3 {[%clk 0:00:08]}  f4+ {[%clk 0:00:09]} 54. Kf2 {[%clk 0:00:08]}  Nd4 {[%clk 0:00:09]} 55. Ke1 {[%clk 0:00:08]}  Ne6 {[%clk 0:00:08]} 56. Nf2 {[%clk 0:00:08]}  Nc5 {[%clk 0:00:08]} 57. b3 {[%clk 0:00:07]}  Rd4 {[%clk 0:00:08]} 58. Ke2 {[%clk 0:00:03]}  Rb4 {[%clk 0:00:08]} 59. Nd3 {[%clk 0:00:04]}  Rxb3 {[%clk 0:00:08]} 60. Rxb3 {[%clk 0:00:02]}  Nxb3 {[%clk 0:00:09]} 61. Nb2 {[%clk 0:00:03]}  Nc5 {[%clk 0:00:08]} 62. Kd2 {[%clk 0:00:03]}  Ke6 {[%clk 0:00:08]} 63. Kc3 {[%clk 0:00:04]}  Kd7 {[%clk 0:00:08]} 64. Kc2 {[%clk 0:00:02]}  Kc6 {[%clk 0:00:07]} 65. Nc4 {[%clk 0:00:02]}  Nd7 {[%clk 0:00:08]} 66. Kc3 {[%clk 0:00:02]}  Kc5 {[%clk 0:00:08]} 67. Nd2 {[%clk 0:00:02]}  b5 {[%clk 0:00:07]} 68. Nb3+ {[%clk 0:00:02]}  Kb6 {[%clk 0:00:08]} 69. axb5 {[%clk 0:00:02]}  Kxb5 {[%clk 0:00:09]} 70. Nd2 {[%clk 0:00:02]}  Nb6 {[%clk 0:00:08]} 71. Nb1 {[%clk 0:00:02]}  a4 {[%clk 0:00:08]} 72. Na3+ {[%clk 0:00:03]}  Kc5 {[%clk 0:00:08]} 73. Nc2 {[%clk 0:00:04]}  Nc4 {[%clk 0:00:09]} 74. Nb4 {[%clk 0:00:04]}  a3 {[%clk 0:00:06]} 75. Nd3+ {[%clk 0:00:05]}  Kb5 {[%clk 0:00:06]} 76. Kb3 {[%clk 0:00:05]}  Kb6 {[%clk 0:00:05]} 77. Ka2 {[%clk 0:00:03]}  Ka5 {[%clk 0:00:04]} 78. Kb3 {[%clk 0:00:03]}  Kb5 {[%clk 0:00:04]} 79. Ka2 {[%clk 0:00:02]}  Ka4 {[%clk 0:00:04]} 80. Nc5+ {[%clk 0:00:02]}  Kb4 {[%clk 0:00:04]} 81. Ne6 {[%clk 0:00:02]}  Nd2 {[%clk 0:00:02]} 82. Nc7 {[%clk 0:00:03]}  Nc4 {[%clk 0:00:02]} 83. Nd5+ {[%clk 0:00:03]}  Ka4 {[%clk 0:00:02]} 84. Ne7 {[%clk 0:00:03]}  Nd6 {[%clk 0:00:03]} 85. Nxg6 {[%clk 0:00:04]}  Nb5 {[%clk 0:00:02]} 86. Nxe5 {[%clk 0:00:04]}  Nc3+ {[%clk 0:00:02]} 87. Ka1 {[%clk 0:00:04]}  Kb3 {[%clk 0:00:03]} 88. Nc6 {[%clk 0:00:05]}  Nb5 {[%clk 0:00:02]} 89. e5 {[%clk 0:00:04]}  Nc7 {[%clk 0:00:03]} 90. Nd4+ {[%clk 0:00:04]}  Kc4 {[%clk 0:00:03]} 91. Nf5 {[%clk 0:00:03]}  Kb3 {[%clk 0:00:04]} 92. h4 {[%clk 0:00:04]}  gxh4 {[%clk 0:00:03]} 93. Nxh4 {[%clk 0:00:04]}  Ne6 {[%clk 0:00:04]} 94. Nf5 {[%clk 0:00:05]}  Nc5 {[%clk 0:00:03]} 95. Nd4+ {[%clk 0:00:05]}  Kc4 {[%clk 0:00:03]} 96. e6 {[%clk 0:00:05]}  Nb7 {[%clk 0:00:01]} 97. e7 {[%clk 0:00:05]}  Nd6 {[%clk 0:00:02]} 98. Ne6 {[%clk 0:00:05]}  Ne8 {[%clk 0:00:01]} 99. Nxf4 {[%clk 0:00:05]}  Kd4 {[%clk 0:00:02]} 100. Nh5 {[%clk 0:00:05]}  Ke5 {[%clk 0:00:02]} 101. Ka2 {[%clk 0:00:05]}  Ke6 {[%clk 0:00:02]} 102. Kxa3 {[%clk 0:00:06]}  Kxe7 {[%clk 0:00:03]} 103. Kb2 {[%clk 0:00:06]}  Ke6 {[%clk 0:00:04]} 104. Kc3 {[%clk 0:00:07]}  Kf5 {[%clk 0:00:05]} 105. Kd2 {[%clk 0:00:07]}  Kg5 {[%clk 0:00:05]} 106. Ng3 {[%clk 0:00:08]}  Kf4 {[%clk 0:00:06]} 107. Ne4 {[%clk 0:00:08]}  Ng7 {[%clk 0:00:06]} 108. Ke2 {[%clk 0:00:09]}  Nf5 {[%clk 0:00:06]} 109. g3+ {[%clk 0:00:09]}  Ke5 {[%clk 0:00:05]} 110. Kf2 {[%clk 0:00:09]}  Nd4 {[%clk 0:00:05]} 111. Nc3 {[%clk 0:00:09]}  Nc2 {[%clk 0:00:06]} 112. Ne2 {[%clk 0:00:10]}  Nb4 {[%clk 0:00:06]} 113. g4 {[%clk 0:00:11]}  Nd5 {[%clk 0:00:06]} 114. Kg3 {[%clk 0:00:11]}  Ne3 {[%clk 0:00:06]} 115. Ng1 {[%clk 0:00:11]}  Nf1+ {[%clk 0:00:06]} 116. Kf2 {[%clk 0:00:12]}  Nd2 {[%clk 0:00:06]} 117. Nh3 {[%clk 0:00:12]}  Nc4 {[%clk 0:00:07]} 118. Kg3 {[%clk 0:00:12]}  Nd2 {[%clk 0:00:07]} 119. Ng5 {[%clk 0:00:11]}  Nf1+ {[%clk 0:00:07]} 120. Kf2 {[%clk 0:00:11]}  Nd2 {[%clk 0:00:08]} 121. Nh3 {[%clk 0:00:11]}  Nc4 {[%clk 0:00:07]} 122. Ng1 {[%clk 0:00:11]}  Nd2 {[%clk 0:00:07]} 123. Ne2 {[%clk 0:00:12]}  Nc4 {[%clk 0:00:08]} 124. Kg3 {[%clk 0:00:11]}  Nd2 {[%clk 0:00:08]} 125. f4+ {[%clk 0:00:11]}  Ke4 {[%clk 0:00:08]} 126. f5 {[%clk 0:00:11]}  Nf1+ {[%clk 0:00:07]} 127. Kh4 {[%clk 0:00:11]}  Ke5 {[%clk 0:00:07]} 128. Kg5 {[%clk 0:00:11]}  Nd2 {[%clk 0:00:06]} 129. Ng1 {[%clk 0:00:11]}  Ne4+ {[%clk 0:00:06]} 130. Kg6 {[%clk 0:00:10]}  Kf4 {[%clk 0:00:07]} 131. Nh3+ {[%clk 0:00:04]}  Kxg4 {[%clk 0:00:06]} 132. Nf2+ {[%clk 0:00:03]}  Nxf2 {[%clk 0:00:07]} 133. f6 {[%clk 0:00:04]}  Nd3 {[%clk 0:00:07]} 134. f7 {[%clk 0:00:03]}  Ne5+ {[%clk 0:00:08]} 135. Kg7 {[%clk 0:00:04]}  Nxf7 {[%clk 0:00:09]} 1/2-1/2


[Site "https://www.chess.com"]